Cogmind - Beta 16 --- EXPLORER MODE // 2025.12.11 @ 16:32:05 Player: K.K.Y. Result: Destroyed by Autobeam Turret with Autobeam Performance ------------- Evolutions (0) 0 Regions Visited (3) 600 Robots Destroyed (40) 200 Value Destroyed (801) 801 Prototype IDs (6) 120 Alien Tech Used (0) 0 Bonus (210) 210 TOTAL SCORE: 1931 Bonus ------- Follower Combat Kills 210 Cogmind --------- Core Integrity 0/250 Matter 247/300 Energy 179/200 System Corruption 0% Temperature Cool (12) Movement Walking (90) Location -10/Subcaves Parts ------- > --- POWER (1) -------- Subdweller Power Source > --- PROPULSION (3+3) - Arachnoskeleton > --- UTILITY (2) ------ Structural Scanner > --- WEAPON (2) ------- Pulse Rifle Flak Cannon > --- INVENTORY (5) ---- Huge Storage Unit Improved Terrain Scanner Rainbow Chip Mining Laser Peak State ------------ > --- POWER ------------ Subdweller Power Source > --- PROPULSION ------- Arachnoskeleton > --- UTILITY ---------- Structural Scanner > --- WEAPON ----------- Pulse Rifle Flak Cannon > --- INVENTORY -------- Subdweller Power Source Huge Storage Unit Improved Terrain Scanner Rainbow Chip Mining Laser [Rating: 32] Favorites ----------- Power Ion Engine Engine Ion Engine Propulsion Flight Unit Leg Arachnoskeleton Wheel Wheel Flight Unit Flight Unit Utility Structural Scanner Device Structural Scanner Processor Targeting Computer Weapon Medium Laser Energy Gun Medium Laser Ballistic Cannon Flak Cannon Special Weapon Mining Laser Build | -11 -10 -10 -10 ------- Run | Yrd Mat Min Sub Slots Evolved 1 | . 1 . . Power . | . . . . Propulsion 1 | . 1 . . Utility . | . . . . Weapon . | . . . . Parts Attached 23 | 5 11 . 7 Power 5 | 1 1 . 3 Engine 5 | 1 1 . 3 Core . | . . . . Reactor . | . . . . Propulsion 8 | 1 6 . 1 Treads . | . . . . Leg 1 | . . . 1 Wheel 4 | 1 3 . . Hover . | . . . . Flight 3 | . 3 . . Utility 3 | 1 2 . . Device 2 | . 2 . . Storage . | . . . . Processor 1 | 1 . . . Hackware . | . . . . Protection . | . . . . Artifact . | . . . . Weapon 7 | 2 2 . 3 Energy Gun 5 | 2 2 . 1 Energy Cannon . | . . . . Ballistic Gun . | . . . . Ballistic Cannon 1 | . . . 1 Launcher . | . . . . Special Weapon 1 | . . . 1 Impact Weapon . | . . . . Slashing Weapon . | . . . . Piercing Weapon . | . . . . Special Melee Weapon . | . . . . Unidentified Prototypes 1 | . . . 1 Parts Lost 6 | . . . 6 Power . | . . . . Propulsion 3 | . . . 3 Utility 1 | . . . 1 Weapon 2 | . . . 2 Highest Loss Streak 5 | . . . 5 To Critical Strikes . | . . . . Average Backups 4 | 1 3 4 4 Power . | . . . . Propulsion . | . . . . Utility 2 | . 1 2 2 Weapon 1 | 1 1 2 1 Tool/Special . | . . . . Unused Backups 7 | . 3 . 4 Power . | . . . . Propulsion 1 | . . . 1 Utility 4 | . 1 . 3 Weapon 2 | . 2 . . Tool/Special . | . . . . Average Slot Usage (%) 76 | . 98 100 65 Engine 11 | . 12 12 11 Leg 1 | . . . 2 Wheel 8 | . 36 . . Flight 12 | . . 37 12 Device 18 | . 20 25 16 Energy Gun 17 | . 25 25 13 Ballistic Cannon 2 | . . . 4 Special Weapon 2 | . . . 4 Peak Build Rating 32 | 5 9 10 32 Average Rating 13 | 3 8 9 15 On Entrance 6 | . 5 9 10 Avg Prop Armor Cover (%) . | . . . . Naked Turns . | . . . . Heaviest Build 15 | 6 12 12 15 Greatest Support 50 | 10 30 12 50 Greatest Overweight (x) 4 | 1 . . 4 Average Overweight (x) . | . . . . Largest Inventory Capacity 5 | 5 5 5 5 Average Capacity 5 | 5 5 5 5 Most Carried 5 | 5 5 5 5 Average Carried 4 | 1 3 4 4 Final Capacity 5 | 5 5 5 5 Final Carried 5 | 5 3 5 4 Class Distribution -------------------- 94% | Hacker-Mutant 5% | Scavenger-Mutant Dominant Class ---------------- Hacker-Mutant | -10/Materials Hacker-Mutant | -10/Mines Hacker-Mutant | -10/Subcaves Resources | -11 -10 -10 -10 ----------- Run | Yrd Mat Min Sub Matter Collected 557 | 240 100 30 187 Remotely . | . . . . Salvage Created 1241 | 199 598 137 307 Parts 76 | 16 25 4 31 Haulers Intercepted 2 | . 2 . . Recyclers Shooed 1 | . 1 . . Parts Field Recycled . | . . . . Retrieved Matter . | . . . . Parts Self-Destructed . | . . . . Prevented . | . . . . Parts Restored . | . . . . Kills | -11 -10 -10 -10 ------- Run | Yrd Mat Min Sub Combat Hostiles Destroyed 24 | . 9 3 12 Guns 18 | . 8 3 7 Cannons 5 | . . . 5 Classes Destroyed 10 | 2 6 . 2 Worker 2 | . 2 . . Builder 1 | . 1 . . Tunneler 5 | 5 . . . Hauler 2 | . 2 . . Recycler 2 | 1 1 . . Turret 1 | . . . 1 Watcher 2 | . 2 . . Swarmer 9 | . 4 . 5 Grunt 9 | . 5 3 1 Subdweller 7 | . . . 7 Best Kill Streak 5 | 4 2 2 5 Combat Bots Only 4 | . 2 2 4 Max Kills in Single Turn 1 | 1 1 1 1 Gunslinging . | . . . . Exploded . | . . . . Melee . | . . . . Uniques/NPCs Destroyed . | . . . . Combat | -11 -10 -10 -10 -------- Run | Yrd Mat Min Sub Hostile Shots Fired 138 | . 33 12 93 Missed 46 | . 8 5 33 Hits 92 | . 25 7 60 Projectile 92 | . 25 7 60 Critical Strikes 3 | . 1 . 2 Damage Taken 887 | . 186 97 604 Core 250 | . 45 34 171 Absorbed by Shields . | . . . . Ignored by Resistances 556 | . 121 58 377 Regen/Repaired (Parts) 21 | . 21 . . Core Remaining (%) 100 | 100 . . . Volleys Fired 115 | 7 43 8 57 Largest 2 | 2 2 2 2 Hottest 163 | 90 100 100 163 Shots Fired 227 | 14 85 16 112 Gun 180 | 14 85 16 65 Cannon 20 | . . . 20 Launcher . | . . . . Special 27 | . . . 27 Kinetic 20 | . . . 20 Thermal 207 | 14 85 16 92 Explosive . | . . . . Electromagnetic . | . . . . Robot Hit Streak 51 | 11 21 14 51 Robot Miss Streak 4 | . 4 1 2 Penetration Max . | . . . . Secondary Targets . | . . . . Shots Hit Robots 140 | 11 65 15 49 Core Hits 73 | 7 27 6 33 Critical Kills . | . . . . Critical Parts Destroyed . | . . . . Critical Strikes 9 | . 5 2 2 Burn 9 | . 5 2 2 Melee Attacks . | . . . . Impact . | . . . . Slashing . | . . . . Piercing . | . . . . Sneak Attacks . | . . . . Combat Hostiles . | . . . . Follow-up Attacks . | . . . . Damage Inflicted 2104 | 129 816 191 968 Guns 1647 | 129 816 191 511 Cannons 433 | . . . 433 Explosions . | . . . . Melee . | . . . . Ramming . | . . . . Kinetic 433 | . . . 433 Thermal 1671 | 129 816 191 535 Explosive . | . . . . Electromagnetic . | . . . . Impact . | . . . . Slashing . | . . . . Piercing . | . . . . Highest Corruption . | . . . . Average Corruption . | . . . . Corruption Purged . | . . . . Corruption Blocked . | . . . . Overload Shots . | . . . . Overflow Damage . | . . . . Projectiles . | . . . . Explosions . | . . . . Melee . | . . . . Knockbacks 10 | . . . 10 Impact . | . . . . Kinetic 10 | . . . 10 Secondary . | . . . . Self-Inflicted Damage . | . . . . Shots . | . . . . Rammed . | . . . . Targets Rammed . | . . . . Kicked . | . . . . Crushed . | . . . . Highest Temperature 149 | 80 72 6 149 Average Temperature 40 | 36 24 6 68 Received Heat Transfer 666 | . 153 42 471 Siege Activations . | . . . . Martial Activations . | . . . . Shielding Activations . | . . . . Robots Disrupted . | . . . . Combat Hostiles . | . . . . Robots Corrupted . | . . . . Combat Hostiles . | . . . . Parts Fried . | . . . . Impact Corruptions . | . . . . Robots Melted 1 | . 1 . . Combat Hostiles 1 | . 1 . . Parts Melted 15 | 1 11 2 1 Heat Transferred 5282 | 359 2764 703 1456 Parts Sabotaged . | . . . . Parts Stolen . | . . . . Parts Stripped . | . . . . Power Chain Reactions . | . . . . Alert | -11 -10 -10 -10 ------- Run | Yrd Mat Min Sub Maximum Alert Level . | . . . . Low Security (%) 100 | 100 100 100 . Level 1 . | . . . . Level 2 . | . . . . Level 3 . | . . . . Level 4 . | . . . . Level 5 . | . . . . High Security . | . . . . Max Security . | . . . . Peak Influence 50 | 10 50 50 . Initial 5 | . . 5 . Average 8 | 3 10 6 . Influence Increases 645 | 30 304 101 210 Destroy 0b10 Robot/C 360 | . 180 60 120 Destroy 0b10 Robot/NC 70 | 30 40 . . Destroy Leader 68 | . 58 10 . Allied During Kill 1 | . . 1 . Successful Hack 11 | . 11 . . Partial Spotted 30 | . . 30 . Lose Combat Pursuer 105 | . 15 . 90 Influence Decreases 485 | 30 284 121 50 Entered New Map 15 | . . 15 . Time Decay 470 | 30 284 106 50 Squads Dispatched 2 | . 2 . . Investigation 2 | . 2 . . Extermination . | . . . . Reinforcement . | . . . . Assault . | . . . . Garrison . | . . . . Intercept . | . . . . Searches Triggered . | . . . . Construction Impeded . | . . . . Haulers Reinforced . | . . . . Active Scanning Responses . | . . . . Cargo Convoy Interrupts . | . . . . Stealth | -11 -10 -10 -10 --------- Run | Yrd Mat Min Sub Distress Signals 1 | . 1 . . Communications Jammed . | . . . . Distress Signals . | . . . . Times Spotted 41 | . 15 3 23 Peak Tracking Total 4 | . 2 2 4 Tactical Retreats 3 | . 1 . 2 Traps | -11 -10 -10 -10 ------- Run | Yrd Mat Min Sub Traps Triggered 4 | . 2 2 . Indirectly . | . . . . Trap Hack Attempts . | . . . . Triggered . | . . . . Disarmed 5 | . 5 . . Reprogrammed . | . . . . Reused . | . . . . Traps Extracted . | . . . . Installed . | . . . . Triggered . | . . . . Machines | -11 -10 -10 -10 ---------- Run | Yrd Mat Min Sub Machines Disabled 1 | . . . 1 Max in Single Turn 1 | . . . 1 Machines Repaired . | . . . . Machines Dismantled . | . . . . Machines Sabotaged . | . . . . Overloaded Fab Kills . | . . . . Hacking | -11 -10 -10 -10 --------- Run | Yrd Mat Min Sub Machines Accessed 11 | . 9 1 1 Terminals 6 | . 6 . . Fabricators . | . . . . Repair Stations 1 | . 1 . . Recycling Units 2 | . 2 . . Scanalyzers . | . . . . Garrison Access . | . . . . Total Hacks 29 | . 24 1 4 Successful 22 | . 17 1 4 Failed 7 | . 7 . . Catastrophic . | . . . . Database Lockouts . | . . . . Manual 13 | . 13 . . Terminals 16 | . 16 . . Fabricators . | . . . . Repair Stations 3 | . 3 . . Recycling Units 5 | . 5 . . Scanalyzers . | . . . . Garrison Access . | . . . . Terminal Hacks 11 | . 6 1 4 Record 4 | . . . 4 Prototype ID Bank 4 | . 4 . . Open Door 1 | . . 1 . Disarm Traps 1 | . 1 . . Registered Prototypes 1 | . 1 . . Fabricator Hacks . | . . . . Repair Station Hacks 2 | . 2 . . Scan Component 1 | . 1 . . Repair 1 | . 1 . . Recycling Unit Hacks 2 | . 2 . . Retrieve Components 2 | . 2 . . Scanalyzer . | . . . . Garrison Access Hacks . | . . . . Unauthorized Hacks 7 | . 7 . . Terminals 6 | . 6 . . Botnet 6 | . 6 . . Fabricators . | . . . . Repair Stations . | . . . . Recycling Units 1 | . 1 . . Reject 1 | . 1 . . Scanalyzers . | . . . . Garrison Access . | . . . . Data Cores Recovered . | . . . . Used . | . . . . Hacking Detections 6 | . 6 . . Full Trace Events 2 | . 2 . . Feedback Events . | . . . . Feedback Blocked . | . . . . Robot Schematics Acquired . | . . . . Robots Built . | . . . . Authchips . | . . . . Time . | . . . . Total Robot Build Rating . | . . . . Part Schematics Acquired . | . . . . Parts Built . | . . . . Authchips . | . . . . Time . | . . . . Total Part Build Rating . | . . . . Part Studies Acquired . | . . . . Parts Repaired 1 | . 1 . . Time 16 | . 16 . . Parts Recycled . | . . . . Recycled Matter . | . . . . Retrieved Matter . | . . . . Retrieved Components 11 | . 11 . . Parts Scanalyzed . | . . . . Part Schematics Acquired . | . . . . Parts Damaged . | . . . . Bothacking | -11 -10 -10 -10 ------------ Run | Yrd Mat Min Sub Used RIF Installer . | . . . . Robots Hacked . | . . . . Non-combat . | . . . . Combat . | . . . . Robot Hacks Applied . | . . . . Relay Couplers Released . | . . . . Fabnet Peak Effective % . | . . . . Robots Rewired . | . . . . Allies Hacked . | . . . . Hacks Repelled . | . . . . Allies | -11 -10 -10 -10 -------- Run | Yrd Mat Min Sub Total Allies 3 | . . 3 . Largest Group 3 | . . 3 3 Highest-Rated Group 40 | . . 40 40 Highest-Rated Ally 16 | . . 16 16 Total Orders . | . . . . Ally Attacks 51 | . . . 51 Total Damage 610 | . . . 610 Kills 7 | . . . 7 Allies Corrupted . | . . . . Allies Melted . | . . . . Intel | -11 -10 -10 -10 ------- Run | Yrd Mat Min Sub Active Infowar (turns) 3468 | . 736 348 2384 Structural 3468 | . 736 348 2384 Robot Analysis Total . | . . . . Derelict Logs Recovered 2 | . . 1 1 Drone Launches . | . . . . Drone Recoveries . | . . . . Exploration | -11 -10 -10 -10 ------------- Run | Yrd Mat Min Sub Turns Passed 3627 | 84 811 348 2384 Spaces Moved 3366 | 57 626 679 2004 Core 305 | 56 . . 249 Treads . | . . . . Legs 730 | . . . 730 Wheels 590 | 1 589 . . Hover . | . . . . Flight 1741 | . 37 679 1025 Fastest Speed 34 | 50 34 34 34 Average Speed 80 | 85 77 34 96 Slowest Speed 250 | 100 80 34 250 Overloaded Moves . | . . . . Propulsion Burnouts . | . . . . Robots Hopped . | . . . . Potential Cave-ins . | . . . . Cave-ins Triggered . | . . . . Exploration Rate (%) 73 | 3 98 98 96 Regions Visited 3 Branch Regions 2 Pre-discovered Areas . | . . . . Known Exits Taken 3 | 1 1 1 . Unknown Exits Taken . | . . . . Scrap Searched 3 | . . . 3 Spaces Dug . | . . . . Terrain Destroyed . | . . . . Melee . | . . . . Projectile . | . . . . AOE . | . . . . Terrain Rammed . | . . . . Walls Destroyed . | . . . . Machines Disabled . | . . . . Actions | -11 -10 -10 -10 --------- Run | Yrd Mat Min Sub Total 4010 | 77 870 779 2284 Wait 460 | . 166 91 203 Move 3363 | 56 625 678 2004 Hop . | . . . . Pick Up 26 | 9 13 2 2 Fast Attach 3 | 1 . . 2 Attach 11 | 4 5 . 2 Detach 2 | . 1 . 1 Swap 16 | . 7 . 9 Drop 14 | . 10 . 4 Fire 115 | 7 43 8 57 Melee . | . . . . Ram . | . . . . Kick . | . . . . Crush . | . . . . Escape Stasis . | . . . . Rewire . | . . . . Trap . | . . . . Miscellaneous . | . . . . Route ------- -11/Scrapyard -10/Materials (discovered 4 exits: *Mat x2 / *Min / *Sub) -10/Mines (discovered 3 exits: *Mat x2 / *Sub) -10/Subcaves (discovered 4 exits: *Mat x2 / *Rec / [*Scr]) History --------- Turn | Location | Event 7 | -11/Scrapyard | Identified exit to Materials 7 | -11/Scrapyard | Discovered exit to Materials (range 15) 85 | -11/Scrapyard | Entered Materials 85 | -10/Materials | Evolved 1 slot: Propulsion x1 237 | -10/Materials | Identified exit to Materials 237 | -10/Materials | Discovered exit to Materials (range 10) 310 | -10/Materials | Build established: Hacker-Mutant 537 | -10/Materials | Discovered exit to Materials (range 14) 609 | -10/Materials | Repaired Cooling System 638 | -10/Materials | Identified exit to Subcaves 638 | -10/Materials | Discovered exit to Subcaves (range 11) 809 | -10/Materials | Identified exit to Mines 809 | -10/Materials | Discovered exit to Mines (range 8) 896 | -10/Materials | Entered Mines 960 | -10/Mines | Met a Derelict who couldn't figure out how to use a Trap Extractor 1018 | -10/Mines | Learned Materials terminal intel 1028 | -10/Mines | Found a hidden stash of uninstalled traps 1091 | -10/Mines | Found a Scrap Suit stashed away for nefarious purposes 1109 | -10/Mines | Discovered exit to Materials (range 6) 1111 | -10/Mines | Discovered exit to Subcaves (range 9) 1149 | -10/Mines | Assisted by bots powering up and referring to "LRC-V3" 1153 | -10/Mines | Discovered exit to Materials (range 15) 1244 | -10/Mines | Entered Subcaves 1244 | -10/Subcaves | Accompanied by 3 allies 1245 | -10/Subcaves | Approached by a straggling Scientist 1249 | -10/Subcaves | Shifting Twisted Machinery released Sub. Optics 1287 | -10/Subcaves | Ambushed by Subdwellers from Twisted Machinery 1293 | -10/Subcaves | Shifting Twisted Machinery released Battle Rifle 1464 | -10/Subcaves | Identified exit to Materials 1464 | -10/Subcaves | Discovered exit to Materials (range 4) 1526 | -10/Subcaves | Shifting Twisted Machinery released Sub. Optics 1634 | -10/Subcaves | Visited Clippyterm 1635 | -10/Subcaves | Identified exit to Recycling 1723 | -10/Subcaves | Shifting Twisted Machinery released Scrap Shield 1837 | -10/Subcaves | A swath of the cavern ceiling suddenly collapsed 1921 | -10/Subcaves | A swath of the cavern ceiling suddenly collapsed 2174 | -10/Subcaves | A Subdweller sparked back to life 2174 | -10/Subcaves | A Subdweller sparked back to life 2174 | -10/Subcaves | A Subdweller sparked back to life 2209 | -10/Subcaves | Core integrity fell below 50% 2239 | -10/Subcaves | Found Prototype Processor 2250 | -10/Subcaves | Lost 5 parts (2n1u2w) 2851 | -10/Subcaves | Visited 4L-MR0's lab 2877 | -10/Subcaves | Found Prototype Leg 2877 | -10/Subcaves | Identified Arachnoskeleton 2878 | -10/Subcaves | Attached Arachnoskeleton, gained temporary slots: Propulsion x3 3092 | -10/Subcaves | Learned Materials garrison access intel 3334 | -10/Subcaves | Discovered exit to Materials (range 8) 3352 | -10/Subcaves | Core integrity fell below 20% 3628 | -10/Subcaves | Destroyed by Autobeam Turret with Autobeam Last Messages --------------- 03356_ 5O-8YE(R) knocked back. 03359_ 5O-8YE(R) destroyed. 03362_ Acquired 9 matter. 03364_ Acquired 13 matter. 03366_ Dropped Sub. Power Source. 03457_ Acquired 10 matter. 03487_ Sub. Power Source shoots sparks and powers down. 03489_ Dropped Broken Sub. Power Source. 03593_ Flight Unit melted. 03593_ S-10 Pest destroyed. 03593_ S-10 Pest knocked back. 03596_ S-10 Pest destroyed. 03602_ Acquired 17 matter. 03605_ S-10 Pest knocked back. 03605_ S-10 Pest destroyed. 03608_ S-10 Pest knocked back. 03611_ S-10 Pest destroyed. 03621_ Destroyed Autobeam. 03621_ Autobeam Turret destroyed. Map ----- +----------------------------------------------------+ | ####### # ####???????????#### ####### | | ### # #########???????### ##### | | ##### ## ## ### ##???????## # | | ##### ## ???????### # # ## | | #### = ##????????#### ### # | | ## %[## ####?????????### ## # | | ## * #######?????????### ## # | | ## ## #### ######????????### ## # | | ## ############ !%&#####??????### ## ## | | ##### ####### ###### #####?????## ## ## | | ############ ##?### ###?????## ## | | ######### !########## && ##?????### | | ########## ##########%!* ##?????#### | | ?### #### ### ###& %## ##??????### ## # | | ?## ## !&######??????### #### | | ?## ##### !##########???## #### | | ?## ### #### #;# ############# ###?# | | ?## ###### ####### ##### | | ?### ######## ## #### | | ?#### ######## ### | | ##### ## #####??## ##### ### | | ##### #########???## ####### ### #### | | # #####"?????### ##### ######## | | ##?##"???? ### ##### ## ##### | | ##?##" ### #### ## ##### | | # ######""t% =@ % ### ## ##### | | ## ######>% =%= ### ##??# | | ## ####?###"" [%%[[ ### ###### | | ### #####??###" ## ### ####### | | #########????##" ## ### ## ######" | | #######??????##""" ?##### ### #### | | ##########??#######?###### ## ##### | | ### #######? ######????###### ## ####"# | | ### ### ?????##### ### ###"## | | ## ## ?????##### ## #""##"# | | ?????### ## #"""## | | ?????## ## ## ####### | | # ##??????????##### #### ## #### | | # ###?????? ???### ######## ### | | # "##???? ??## ######## ### | | # ##????? ??## ####?#### ##"# | | # ## ## ? ?### ######## ###" | | ##### %### ?? ### ##### ## | | ######! ### #?## ## ### " | | ?#####% ### = ###### ### | | ##### ### !%=###### ####### | | ### ### [ ##### ######## ### | | ## % ## ##### ##### #### | | ## ###### ##### ###### | | ## ######## # #### ### | +----------------------------------------------------+ Best States ------------- Heat Dissipation 47 Energy Generation 15 Energy Capacity 250 Matter Stores 300 Matter Capacity 300 Sight Range 16 Terrain Scan Density 10 Resistance: KI 35 Resistance: TH 35 Resistance: EX 35 Resistance: EM 35 Resistance: I 35 Resistance: S 35 Resistance: P 35 Evasion (%) 63 Targeting Accuracy 5 Offensive Hacking 20 Item Schematics ----------------- None Robot Schematics ------------------ None Fabricated ------------ Nothing Repaired ---------- Cooling System | 58% | -10/Materials Studied --------- None Alien Tech Used ----------------- None Achievements -------------- None Challenges ------------ None Game ------ Seed MagneticTowerSheargun Manual? 0 Play Time 00:34:54 Cumulative 191.3 hours Start 2025.12.11 @ 13:10:10 End 2025.12.11 @ 16:32:05 Sessions 1 Manual Loads 0 Difficulty Explorer Special Mode None Game No. 276 Rogue 0 Adventurer 0 Explorer 276 Win Type - Total 0 Types 0/0/0/0/0/0/0/0/0/0 Lore% 71 Gallery% 67 Achievement% 53 Wizard Run 0 Options --------- Layout 1 ASCII 0 Keyboard 0 Movement Mouse Keybinds 0 Fullscreen 1 Font 24/Smallcaps Map View 50x35 Zoom Use 0% Tactical HUD 1 Map Filters NONE Filters NONE Steam 1 RUN: 34059e72-e72e-45a1-9067-4672afae25c5